{"text_format":"3","workbook":"xlsx","n_sheets":1,"sheets":["قائمة البقالة"],"not_rendered":{"images":1,"defined_names":3},"read":"whole","date_system":"1900"}

{"sheet":"قائمة البقالة","index":0,"n_rows":31,"n_cols":8,"rows_kept":31,"merged":[[1,1,1,2]]}
[null,"قائمة البقالة"]
[null,"التاريخ"]
[null,"تم؟","الصنف","الفئة","الكمية","السعر","السعر المفصل","العلامة التجارية/التعليقات"]
[null,null,"برتقال","الفاكهة والخضراوات",null,null,{"$f":"IFERROR(SUM(GroceryList[الكمية]*GroceryList[السعر]), \"\")","v":{"v":0,"d":"ر.س.‏ 0.00"}}]
[null,null,"تفاح","الفاكهة والخضراوات",null,null,{"$f":"IFERROR(SUM(GroceryList[الكمية]*GroceryList[السعر]), \"\")","v":{"v":0,"d":"ر.س.‏ 0.00"}}]
[null,null,"موز","الفاكهة والخضراوات",null,null,{"$f":"IFERROR(SUM(GroceryList[الكمية]*GroceryList[السعر]), \"\")","v":{"v":0,"d":"ر.س.‏ 0.00"}}]
[null,null,"خس","الفاكهة والخضراوات",null,null,{"$f":"IFERROR(SUM(GroceryList[الكمية]*GroceryList[السعر]), \"\")","v":{"v":0,"d":"ر.س.‏ 0.00"}}]
[null,null,"طماطم","الفاكهة والخضراوات",null,null,{"$f":"IFERROR(SUM(GroceryList[الكمية]*GroceryList[السعر]), \"\")","v":{"v":0,"d":"ر.س.‏ 0.00"}},"  "]
[null,null,"حليب ","منتجات الألبان",null,null,{"$f":"IFERROR(SUM(GroceryList[الكمية]*GroceryList[السعر]), \"\")","v":{"v":0,"d":"ر.س.‏ 0.00"}}]
[null,null,"جُبن","منتجات الألبان",null,null,{"$f":"IFERROR(SUM(GroceryList[الكمية]*GroceryList[السعر]), \"\")","v":{"v":0,"d":"ر.س.‏ 0.00"}}]
[null,null,"بيض","منتجات الألبان",null,null,{"$f":"IFERROR(SUM(GroceryList[الكمية]*GroceryList[السعر]), \"\")","v":{"v":0,"d":"ر.س.‏ 0.00"}}]
[null,null,"جُبن كريمي","منتجات الألبان",null,null,{"$f":"IFERROR(SUM(GroceryList[الكمية]*GroceryList[السعر]), \"\")","v":{"v":0,"d":"ر.س.‏ 0.00"}}]
[null,null,"لحم بقري","اللحوم",null,null,{"$f":"IFERROR(SUM(GroceryList[الكمية]*GroceryList[السعر]), \"\")","v":{"v":0,"d":"ر.س.‏ 0.00"}}]
[null,null,"الدواجن","اللحوم",null,null,{"$f":"IFERROR(SUM(GroceryList[الكمية]*GroceryList[السعر]), \"\")","v":{"v":0,"d":"ر.س.‏ 0.00"}}]
[null,null,"اللحم","اللحوم",null,null,{"$f":"IFERROR(SUM(GroceryList[الكمية]*GroceryList[السعر]), \"\")","v":{"v":0,"d":"ر.س.‏ 0.00"}}]
[null,null,"العصير","المشروبات",null,null,{"$f":"IFERROR(SUM(GroceryList[الكمية]*GroceryList[السعر]), \"\")","v":{"v":0,"d":"ر.س.‏ 0.00"}}]
[null,null,"القهوة","المشروبات",null,null,{"$f":"IFERROR(SUM(GroceryList[الكمية]*GroceryList[السعر]), \"\")","v":{"v":0,"d":"ر.س.‏ 0.00"}}]
[null,null,"الشاي","المشروبات",null,null,{"$f":"IFERROR(SUM(GroceryList[الكمية]*GroceryList[السعر]), \"\")","v":{"v":0,"d":"ر.س.‏ 0.00"}}]
[null,null,"الماء","المشروبات",null,null,{"$f":"IFERROR(SUM(GroceryList[الكمية]*GroceryList[السعر]), \"\")","v":{"v":0,"d":"ر.س.‏ 0.00"}}]
[null,null,"شرائح المعكرونة","معكرونة",null,null,{"$f":"IFERROR(SUM(GroceryList[الكمية]*GroceryList[السعر]), \"\")","v":{"v":0,"d":"ر.س.‏ 0.00"}}]
[null,null,"الأرز","معكرونة",null,null,{"$f":"IFERROR(SUM(GroceryList[الكمية]*GroceryList[السعر]), \"\")","v":{"v":0,"d":"ر.س.‏ 0.00"}}]
[null,null,"المعلبات","حساء",null,null,{"$f":"IFERROR(SUM(GroceryList[الكمية]*GroceryList[السعر]), \"\")","v":{"v":0,"d":"ر.س.‏ 0.00"}}]
[null,null,"الخليط المجفف","حساء",null,null,{"$f":"IFERROR(SUM(GroceryList[الكمية]*GroceryList[السعر]), \"\")","v":{"v":0,"d":"ر.س.‏ 0.00"}}]
[null,null,"الخبز","مخبز",null,null,{"$f":"IFERROR(SUM(GroceryList[الكمية]*GroceryList[السعر]), \"\")","v":{"v":0,"d":"ر.س.‏ 0.00"}}]
[null,null,"شرائح البطاطس","وجبات خفيفة",null,null,{"$f":"IFERROR(SUM(GroceryList[الكمية]*GroceryList[السعر]), \"\")","v":{"v":0,"d":"ر.س.‏ 0.00"}}]
[null,null,"المقرمشات المالحة","وجبات خفيفة",null,null,{"$f":"IFERROR(SUM(GroceryList[الكمية]*GroceryList[السعر]), \"\")","v":{"v":0,"d":"ر.س.‏ 0.00"}}]
[null,null,"آيس كريم","وجبات خفيفة",null,null,{"$f":"IFERROR(SUM(GroceryList[الكمية]*GroceryList[السعر]), \"\")","v":{"v":0,"d":"ر.س.‏ 0.00"}}]
[null,null,"البسكويت","وجبات خفيفة",null,null,{"$f":"IFERROR(SUM(GroceryList[الكمية]*GroceryList[السعر]), \"\")","v":{"v":0,"d":"ر.س.‏ 0.00"}}]
[null,null,"أطباق ورقية","مستلزمات",null,null,{"$f":"IFERROR(SUM(GroceryList[الكمية]*GroceryList[السعر]), \"\")","v":{"v":0,"d":"ر.س.‏ 0.00"}}]
[null,null,"فوط","مستلزمات",null,null,{"$f":"IFERROR(SUM(GroceryList[الكمية]*GroceryList[السعر]), \"\")","v":{"v":0,"d":"ر.س.‏ 0.00"}}]
[{"$nulls":6},{"$f":"SUBTOTAL(109,GroceryList[السعر المفصل])","v":{"v":0,"d":"ر.س.‏ 0.00"}}]